Workbook

Sheet Instructions
B2: Maximizing the Odds of Pregnancy with Artificial Insemination
B3: A Sperm Loss & Pregnancy Probability Calculator
B5: Bryan Reiling*, David Grieger**, Andrea Cupp*, and Landon Tadich* *University of Nebraska-Lincoln, **Kansas State University
B8: This tool was developed as part of an inquiry-based learning activity, designed to introduce students to reproductive biology as they simultaneously learn the basic steps associated with artificial insemination.
B11: General Instructions:
B12: 1) Enable MACROS. There are 2 macros within this workbook that will allow you to clear answers associated with 1) to clear inputs associated with AI Technique, and 3) to clearn inputs associated with biology. To activiate either of these macros, simply push the appropriate button that can be found at the top of the AI Technique or Biology worksheets.
B14: Instructions & Comments: AI Technique
B15: 1) Answer questions by clicking the button associated with your response. 2) No responses will be released until after all questions have been answered. 3) Your goal is to maximize the number of spermatazoa reaching the fertilized egg, which will equate to a 60% conception rate.
B17: Instructions: Biology
B18: 1) Once the AI Technique page is completed, go to the Biology workpage. 2) Results associated with your selected answers to the various questions are shown on the top of both worksheets. 3) On the biology page, you will answer questions regarding the biological state of the cow you planned to artificially inseminate. 4) Provided the AI Technique worksheet is complete, the biolgoy worksheet will return the probability of pregnancy based on the number of spermatazoa reaching the egg (based on AI technique) and the biological state you selected for each question. 5) After ansering all questions (for both AI technique and biological state), try to determine how the probability of pregnancy could be improved and hypothesize the biological basis for those high or low chances of pregnancy.
B20: Disclaimer: This is an EDUCATIONAL tool ONLY. It is not designed to provide absolute values for the purpose of making managerial decisions related to reproductive performance in cattle.
B24: Funded by a USDA-NIFA-PDAL grant, Award Number 2021-67037-34298, Program A7501.

Sheet AITechnique
B2: Maximizing the Odds of Pregnancy with Artificial Insemination
B5: Number of STARTING sperm (in the straw): | C5: 20000000
B6: Number of sperm projected to reach the OVULATING egg, in utero: | C6: =IF(K62<8,"Check Answers",H58) -> 94.5
B7: Probability of Pregnancy | C7: =IF(C6="Check Answers","Check Answers",H62) -> 0.00875
B8: Probability of pregnancy, based on day of the estrous cycle | C8: =IF($C$6="Check Answers","",Biology!D16) -> 0.00875 | D8: Strive to have all values be the same, and to equal your maximal probability of pregnancy.
B9: Probability of Pregnancy, based on behavioral indicators | C9: =IF($C$6="Check Answers","",Biology!D24) -> 0.00875
B10: Probability of Pregnancy, based on hormone profile | C10: =IF($C$6="Check Answers","",Biology!D31) -> 0.00875 | G10: To be HIDDEN in the Final Copy
B11: Probability of Pregnancy based on ovarian structures | C11: =IF($C$6="Check Answers","",Biology!D38) -> 0.00875
B13: Decision | C13: Select Answer | D13: % Sperm Loss | E13: # Sperm Remaining | H13: # Sperm Remaining | I13: % Sperm Loss | J13: % Loss values for each answer | K13: Student Selected Answer | L13: % Preg values for each answer | M13: Notes/References | N13: Links
B14: 1) Using a water bath, at what temperature should you thaw the semen?
B15: A) 75oF | D15: =IF(C6="Check Answers","",I15) -> 75 | E15: =IF(C6="Check Answers","",H15) -> 5000000 | H15: =IF(K15="","",C5-(I15*C5/100)) -> 5000000 | I15: =IF(K15="","",CHOOSE(K15,J15,J16,J17,J18)) -> 75 | J15: 85 | K15: 2 | M15: Akers, et al (n.d.) | N15: https://blogs.mcm.edu/STEMsuccess/wp-content/uploads/2020/05/Abilene-Team-Expert-AI-Research-Article_Akers.pdf
B16: B) 85oF | J16: 75
B17: C) 95oF | J17: 60 | M17: Akers, et al (n.d.) | N17: https://blogs.mcm.edu/STEMsuccess/wp-content/uploads/2020/05/Abilene-Team-Expert-AI-Research-Article_Akers.pdf
B18: D) 105oF | J18: 90
B21: 2) Loading the Insemination Gun Does the water need to be wiped off the straw?
B22: A) Yes | D22: =IF(C6="Check Answers","",I22) -> 10 | E22: =IF(C6="Check Answers","",H22) -> 4500000 | H22: =IF(K22="","",H15-(I22*H15/100)) -> 4500000 | I22: =IF(K22="","",CHOOSE(K22,J22,J23)) -> 10 | J22: 0 | K22: 2
B23: B) No | J23: 10
B26: Loading the Insemination Gun 3) Should one "shake down" the straw?
B27: A) Yes | D27: =IF(C6="Check Answers","",I27) -> 0 | E27: =IF(C6="Check Answers","",H27) -> 4500000 | H27: =IF(K27="","",H22-(I27*H22/100)) -> 4500000 | I27: =IF(K27="","",CHOOSE(K27,J27,J28)) -> 0 | J27: 0 | K27: 1
B28: B) No | J28: 10
B31: Loading the Insemination Gun 4) At what end should the straw be cut?
B32: A) Crimped end | D32: =IF(C6="Check Answers","",I32) -> 70 | E32: =IF(C6="Check Answers","",H32) -> 1350000 | H32: =IF(K32="","",H27-(I32*H27/100)) -> 1350000 | I32: =IF(K32="","",CHOOSE(K32,J32,J33)) -> 70 | J32: 0 | K32: 2
B33: B) Plugged end | J33: 70
B36: 5) Loading the Insemination Gun How much of the straw should be cut off?
B37: A) To the 1/4 inch mark | D37: =IF(C6="Check Answers","",I37) -> 30 | E37: =IF(C6="Check Answers","",H37) -> 945000 | H37: =IF(K37="","",H32-(I37*H32/100)) -> 945000 | I37: =IF(K37="","",CHOOSE(K37,J37,J38,J39,J40)) -> 30 | J37: 30 | K37: 1
B38: B) To the 3/8 inch mark | J38: 0
B39: C) To the 1/2 inch mark | J39: 0
B40: D) To the 1-inch mark | J40: 30
B43: 6) Loading the Insemination Gun How should the properly loaded AI gun be transported to the cow? Note - Let's assume the outside air temperature is 50o F
B44: A) In your back pocket | D44: =IF(C6="Check Answers","",I44) -> 50 | E44: =IF(C6="Check Answers","",H44) -> 472500 | H44: =IF(K44="","",H37-(I44*H37/100)) -> 472500 | I44: =IF(K44="","",CHOOSE(K44,J44,J45,J46,J47)) -> 50 | J44: 50 | K44: 1
B45: B) In your shirt, next to the skin | J45: 10
B46: C) Place in "coffee-hot" thermous or water jacket | J46: 90
B47: D) Simply carry it in your hand | J47: 50
B50: 7) Hands-on Insemination: "Got cows to breed, and we don't have all day" Thus, you have 1 minute to thread the AI gun through the cervix. When done, observe to see how far you got, and select your progress.
B51: A) AI rod was more than 1 inch past the anterior end of the cervix (i.e., in the uterine horn) | D51: =IF(C6="Check Answers","",I51) -> 80 | E51: =IF(C6="Check Answers","",H51) -> 94500 | H51: =IF(K51="","",H44-(I51*H44/100)) -> 94500 | I51: =IF(K51="","",CHOOSE(K51,J51,J52,J53,J54)) -> 80 | J51: 20 | K51: 4
B52: B) AI rod was 1 inch or less past the anterior end of the cervix (i.e., in the uterine body) | J52: 10
B53: C) AI rod was passes at least half way through the cervix, but not all the way (2 marks visible on sheath) | J53: 70
B54: D) AI rod was inserted into cervix, but was passed less than half way through (1 mark visible on sheath) | J54: 80
B57: 8) Natural death loss of sperm cells in the reproductive tract … 99.9%! Sorry, but you cannot change this number
B58: A) ONLY 0.1% of all sperm cells are capable of reaching and fertilizing the egg! | E58: =IF(C6="check answers","",H58) -> 94.5 | H58: =IF(K58="","",H51-(I58*H51/100)) -> 94.5 | I58: =IF(K58="","",(IF(K58=1,J58))) -> 99.9 | J58: 99.9 | K58: 1
G59: MAX = | H59: 6480
G60: % of MAX Sperm = | H60: =IF(H58="","",H58/H59) -> 0.01458333333
G61: Max Preg Rage = | H61: 0.6
G62: Probability | H62: =IF(H60="","",H60*H61) -> 0.00875 | I62: # of Answers Selected | K62: =COUNTA(K58,K51,K44,K37,K32,K27,K22,K15) -> 8

Sheet Biology
B2: Maximizing the Odds of Pregnancy with Artificial Insemination
B5: Number of STARTING sperm (in the straw): | C5: =AITechnique!C5 -> 20000000
B6: Number of sperm projected to reach the OVULATING egg, in utero: | C6: =AITechnique!C6 -> 94.5
B7: Probability of Pregnancy | C7: =AITechnique!C7 -> 0.00875
B8: Probability of pregnancy, based on day of the estrous cycle | C8: =AITechnique!C8 -> 0.00875
B9: Probability of Pregnancy, based on behavioral indicators | C9: =AITechnique!C9 -> 0.00875
B10: Probability of Pregnancy, based on hormone profile | C10: =AITechnique!C10 -> 0.00875
B11: Probability of Pregnancy based on ovarian structures | C11: =AITechnique!C11 -> 0.00875
B13: Although you've determined the number of viable sperm that should reach the ovulated egg, based on your ability to properly handle and deliver the semen. The probability of pregnancy depends on proper timing and the reproductive state of the cow. With the next four questions, you will attempt to identify the proper day of the estrous cycle, behavioral signs, hormonal profile, and reproductive structures that should be present in cows to maximize the probability of pregnancy. If you did everything right in regards to AI technique, you should strive for a 60% pregnancy rate. | G13: To be HIDDEN in the Final Copy
B14: Decision | C14: Select Answer | D14: % Pregnancy | G14: % Preg, adjusted for # sperm reaching egg | H14: % Preg, with max sperm reaching egg | I14: % Preg values for each answer | J14: Student Selected Answer | K14: Notes/References | L14: Links
B15: A cow possesses a recurring 21-day estrous cycle. On what day of the estrous cycle, should the cow be bred to maximize the probability of pregnancy?
B16: A) Day 0, breed immediately upon seeing telltale signs of estrous behavior | D16: =G16 -> 0.00875 | G16: =IF(AITechnique!$H$60="","",IF(J16="","",H16*AITechnique!$H$60)) -> 0.00875 | H16: =IF(J16="","",CHOOSE(J16,I16,I17,I18,I19,I20,I21)/100) -> 0.6 | I16: 45 | J16: 2
B17: B) Day 0, breed 12 hrs after seeing telltale signs of estrous behavior | I17: 60
B18: C) Day 1, breed 24 hrs after seeing telltale signs of estrous behavior | I18: 20
B19: D) Day 5, breed 5 days after seeing telltale signs of estrous behavior | I19: 0
B20: E) Day 10, breed 10 days after seeing telltale signs of estrous behavior | I20: 0
B21: F) Day 20, breed 12 hrs BEFORE you expect to see telltale signs of estrous behavior | I21: 10
B23: What behavioral signs best indicate that a cow is in estrus. The associated probability of pregnancy is associated with these signs providing clear indication for the proper timing of breeding.
B24: A) Cow has no interest in the bull or other cows. | D24: =G24 -> 0.00875 | G24: =IF(AITechnique!$H$60="","",IF(J24="","",H24*AITechnique!$H$60)) -> 0.00875 | H24: =IF(J24="","",CHOOSE(J24,I24,I25,I26,I27,I28)/100) -> 0.6 | I24: 0 | J24: 4
B25: B) Cow sniffs vulva of other cows. | I25: 10
B26: C) Cow exhibits mucous discharge from the vulva, and she is riding other cows. | I26: 20
B27: D) Cow stands to be mounted by other cows. | I27: 60
B28: E) Cow exhibits a bloody discharge from vulva, attempts to walk away when mounted. | I28: 0
B30: What hormone profile should be present within the cow at the time of breeding to maximize the probability of pregnancy?
B31: A) Progesterone levels are slowly increasing, and Estrogen has fallen to low levels | D31: =G31 -> 0.00875 | G31: =IF(AITechnique!$H$60="","",IF(J31="","",H31*AITechnique!$H$60)) -> 0.00875 | H31: =IF(J31="","",CHOOSE(J31,I31,I32,I33,I34,I35)/100) -> 0.6 | I31: 20 | J31: 5
B32: B) Progesterone is high, Estrogen is low | I32: 0
B33: C) Progesterone levels have peaked, and Estrogen is low | I33: 0
B34: D) Progesterone levels are falling and Estrogen levels are rising | I34: 10
B35: E) Progesterone levels are low, and Estrogen levels have peaked | I35: 60
B37: What reproductive structures should be present and functioning on the cow's ovary shortly before the time of breeding to maximie the probability of pregnancy?
B38: A) Large pre-ovulatory follicle, no corpus luteum present | D38: =G38 -> 0.00875 | G38: =IF(AITechnique!$H$60="","",IF(J38="","",H38*AITechnique!$H$60)) -> 0.00875 | H38: =IF(J38="","",CHOOSE(J38,I38,I39,I40,I41,I42)/100) -> 0.6 | I38: 60 | J38: 1
B39: B) Pre-ovulatory follicle has lysed | I39: 20
B40: C) From the lysed follicle, a corpus luteum is starting to form | I40: 0
B41: D) A mature corpus luteum is present, secreting progesterone | I41: 0
B42: E) The corpus luteum is regressing as the follicle continues to grow | I42: 10
